Workbook

Sheet DB
D1: ΦΟΡΜΑ ΔΗΛΩΣΗΣ ΣΥΜΜΕΤΟΧΗΣ ΣΤΟ 1ο Ε2
D2: ΗΜΕΡΟΜΗΝΙΑ | E2: 6-10/3/2015
D3: ΣΥΝΤΟΜΕΥΣΕΙΣ | E3: ΣΕΡ (ΣΑ ΣΕΡΡΩΝ 12), ΞΑΝ (ΟΑ ΞΑΝΘΗΣ 14), ΤΙΤ (ΑΟΑ ΤΙΤΑΝΕΣ Ν. ΠΕΡΑΜΟΥ 16)
E4: ΚΑΛ (ΟΑ ΚΑΛΑΜΑΤΑΣ 12 - 14 -16)
E5: ΗΡΑ (ΗΡΑΚΛΕΙΟ ΟΑ & Α 12 - 14 - 16)
A7: # | B7: α/α | C7: Α.Μ. | D7: Ονοματεπώνυμο | E7: Σύλλογος | F7: Έτος | G7: Πόλη1 | H7: Κτγ1 | I7: Πόλη2 | J7: Κτγ2 | K7: Πόλη3 | L7: Κτγ3 | M7: Πόλη4 | N7: Κτγ4
A8: 1 | B8: =IF(G8&H8=G7&H7,B7+1,1) -> 1
A9: 2 | B9: =IF(G9&H9=G8&H8,B8+1,1) -> 2
A10: 3 | B10: =IF(G10&H10=G9&H9,B9+1,1) -> 3
A11: 4 | B11: =IF(G11&H11=G10&H10,B10+1,1) -> 4
A12: 5 | B12: =IF(G12&H12=G11&H11,B11+1,1) -> 5
A13: 6 | B13: =IF(G13&H13=G12&H12,B12+1,1) -> 6
A14: 7 | B14: =IF(G14&H14=G13&H13,B13+1,1) -> 7
A15: 8 | B15: =IF(G15&H15=G14&H14,B14+1,1) -> 8
A16: 9 | B16: =IF(G16&H16=G15&H15,B15+1,1) -> 9
A17: 10 | B17: =IF(G17&H17=G16&H16,B16+1,1) -> 10
A18: 11 | B18: =IF(G18&H18=G17&H17,B17+1,1) -> 11
A19: 12 | B19: =IF(G19&H19=G18&H18,B18+1,1) -> 12
A20: 13 | B20: =IF(G20&H20=G19&H19,B19+1,1) -> 13
A21: 14 | B21: =IF(G21&H21=G20&H20,B20+1,1) -> 14
A22: 15 | B22: =IF(G22&H22=G21&H21,B21+1,1) -> 15
A23: 16 | B23: =IF(G23&H23=G22&H22,B22+1,1) -> 16
A24: 17 | B24: =IF(G24&H24=G23&H23,B23+1,1) -> 17
A25: 18 | B25: =IF(G25&H25=G24&H24,B24+1,1) -> 18
A26: 19 | B26: =IF(G26&H26=G25&H25,B25+1,1) -> 19
A27: 20 | B27: =IF(G27&H27=G26&H26,B26+1,1) -> 20
A28: 21 | B28: =IF(G28&H28=G27&H27,B27+1,1) -> 21
A29: 22 | B29: =IF(G29&H29=G28&H28,B28+1,1) -> 22
A30: 23 | B30: =IF(G30&H30=G29&H29,B29+1,1) -> 23
A31: 24 | B31: =IF(G31&H31=G30&H30,B30+1,1) -> 24
A32: 25 | B32: =IF(G32&H32=G31&H31,B31+1,1) -> 25
A33: 26 | B33: =IF(G33&H33=G32&H32,B32+1,1) -> 26
A34: 27 | B34: =IF(G34&H34=G33&H33,B33+1,1) -> 27
A35: 28 | B35: =IF(G35&H35=G34&H34,B34+1,1) -> 28
A36: 29 | B36: =IF(G36&H36=G35&H35,B35+1,1) -> 29
A37: 30 | B37: =IF(G37&H37=G36&H36,B36+1,1) -> 30
A38: 31 | B38: =IF(G38&H38=G37&H37,B37+1,1) -> 31
A39: 32 | B39: =IF(G39&H39=G38&H38,B38+1,1) -> 32
A40: 33 | B40: =IF(G40&H40=G39&H39,B39+1,1) -> 33
A41: 34 | B41: =IF(G41&H41=G40&H40,B40+1,1) -> 34
A42: 35 | B42: =IF(G42&H42=G41&H41,B41+1,1) -> 35
A43: 36 | B43: =IF(G43&H43=G42&H42,B42+1,1) -> 36
A44: 37 | B44: =IF(G44&H44=G43&H43,B43+1,1) -> 37
A45: 38 | B45: =IF(G45&H45=G44&H44,B44+1,1) -> 38
A46: 39 | B46: =IF(G46&H46=G45&H45,B45+1,1) -> 39
A47: 40 | B47: =IF(G47&H47=G46&H46,B46+1,1) -> 40
A48: 41 | B48: =IF(G48&H48=G47&H47,B47+1,1) -> 41
A49: 42 | B49: =IF(G49&H49=G48&H48,B48+1,1) -> 42
A50: 43 | B50: =IF(G50&H50=G49&H49,B49+1,1) -> 43
A51: 44 | B51: =IF(G51&H51=G50&H50,B50+1,1) -> 44
A52: 45 | B52: =IF(G52&H52=G51&H51,B51+1,1) -> 45
A53: 46 | B53: =IF(G53&H53=G52&H52,B52+1,1) -> 46
A54: 47 | B54: =IF(G54&H54=G53&H53,B53+1,1) -> 47
A55: 48 | B55: =IF(G55&H55=G54&H54,B54+1,1) -> 48
A56: 49 | B56: =IF(G56&H56=G55&H55,B55+1,1) -> 49
A57: 50 | B57: =IF(G57&H57=G56&H56,B56+1,1) -> 50
A58: 51 | B58: =IF(G58&H58=G57&H57,B57+1,1) -> 51
A59: 52 | B59: =IF(G59&H59=G58&H58,B58+1,1) -> 52
A60: 53 | B60: =IF(G60&H60=G59&H59,B59+1,1) -> 53
A61: 54 | B61: =IF(G61&H61=G60&H60,B60+1,1) -> 54
A62: 55 | B62: =IF(G62&H62=G61&H61,B61+1,1) -> 55
A63: 56 | B63: =IF(G63&H63=G62&H62,B62+1,1) -> 56
A64: 57 | B64: =IF(G64&H64=G63&H63,B63+1,1) -> 57
A65: 58 | B65: =IF(G65&H65=G64&H64,B64+1,1) -> 58
A66: 59 | B66: =IF(G66&H66=G65&H65,B65+1,1) -> 59
A67: 60 | B67: =IF(G67&H67=G66&H66,B66+1,1) -> 60
A68: 61 | B68: =IF(G68&H68=G67&H67,B67+1,1) -> 61
A69: 62 | B69: =IF(G69&H69=G68&H68,B68+1,1) -> 62
A70: 63 | B70: =IF(G70&H70=G69&H69,B69+1,1) -> 63
A71: 64 | B71: =IF(G71&H71=G70&H70,B70+1,1) -> 64
A72: 65 | B72: =IF(G72&H72=G71&H71,B71+1,1) -> 65
A73: 66 | B73: =IF(G73&H73=G72&H72,B72+1,1) -> 66
A74: 67 | B74: =IF(G74&H74=G73&H73,B73+1,1) -> 67
A75: 68 | B75: =IF(G75&H75=G74&H74,B74+1,1) -> 68
A76: 69 | B76: =IF(G76&H76=G75&H75,B75+1,1) -> 69
A77: 70 | B77: =IF(G77&H77=G76&H76,B76+1,1) -> 70
A78: 71 | B78: =IF(G78&H78=G77&H77,B77+1,1) -> 71
A79: 72 | B79: =IF(G79&H79=G78&H78,B78+1,1) -> 72
A80: 73 | B80: =IF(G80&H80=G79&H79,B79+1,1) -> 73
A81: 74 | B81: =IF(G81&H81=G80&H80,B80+1,1) -> 74
A82: 75 | B82: =IF(G82&H82=G81&H81,B81+1,1) -> 75
A83: 76 | B83: =IF(G83&H83=G82&H82,B82+1,1) -> 76
A84: 77 | B84: =IF(G84&H84=G83&H83,B83+1,1) -> 77
A85: 78 | B85: =IF(G85&H85=G84&H84,B84+1,1) -> 78
A86: 79 | B86: =IF(G86&H86=G85&H85,B85+1,1) -> 79
A87: 80 | B87: =IF(G87&H87=G86&H86,B86+1,1) -> 80
A88: 81 | B88: =IF(G88&H88=G87&H87,B87+1,1) -> 81
A89: 82 | B89: =IF(G89&H89=G88&H88,B88+1,1) -> 82
A90: 83 | B90: =IF(G90&H90=G89&H89,B89+1,1) -> 83
A91: 84 | B91: =IF(G91&H91=G90&H90,B90+1,1) -> 84
A92: 85 | B92: =IF(G92&H92=G91&H91,B91+1,1) -> 85
A93: 86 | B93: =IF(G93&H93=G92&H92,B92+1,1) -> 86
A94: 87 | B94: =IF(G94&H94=G93&H93,B93+1,1) -> 87
A95: 88 | B95: =IF(G95&H95=G94&H94,B94+1,1) -> 88
A96: 89 | B96: =IF(G96&H96=G95&H95,B95+1,1) -> 89
A97: 90 | B97: =IF(G97&H97=G96&H96,B96+1,1) -> 90
A98: 91 | B98: =IF(G98&H98=G97&H97,B97+1,1) -> 91
A99: 92 | B99: =IF(G99&H99=G98&H98,B98+1,1) -> 92
A100: 93 | B100: =IF(G100&H100=G99&H99,B99+1,1) -> 93
A101: 94 | B101: =IF(G101&H101=G100&H100,B100+1,1) -> 94
A102: 95 | B102: =IF(G102&H102=G101&H101,B101+1,1) -> 95
A103: 96 | B103: =IF(G103&H103=G102&H102,B102+1,1) -> 96
A104: 97 | B104: =IF(G104&H104=G103&H103,B103+1,1) -> 97
A105: 98 | B105: =IF(G105&H105=G104&H104,B104+1,1) -> 98
A106: 99 | B106: =IF(G106&H106=G105&H105,B105+1,1) -> 99
A107: 100 | B107: =IF(G107&H107=G106&H106,B106+1,1) -> 100
A108: 101 | B108: =IF(G108&H108=G107&H107,B107+1,1) -> 101
A109: 102 | B109: =IF(G109&H109=G108&H108,B108+1,1) -> 102
A110: 103 | B110: =IF(G110&H110=G109&H109,B109+1,1) -> 103
A111: 104 | B111: =IF(G111&H111=G110&H110,B110+1,1) -> 104
A112: 105 | B112: =IF(G112&H112=G111&H111,B111+1,1) -> 105
A113: 106 | B113: =IF(G113&H113=G112&H112,B112+1,1) -> 106
A114: 107 | B114: =IF(G114&H114=G113&H113,B113+1,1) -> 107
A115: 108 | B115: =IF(G115&H115=G114&H114,B114+1,1) -> 108
A116: 109 | B116: =IF(G116&H116=G115&H115,B115+1,1) -> 109
A117: 110 | B117: =IF(G117&H117=G116&H116,B116+1,1) -> 110
A118: 111 | B118: =IF(G118&H118=G117&H117,B117+1,1) -> 111
A119: 112 | B119: =IF(G119&H119=G118&H118,B118+1,1) -> 112
A120: 113 | B120: =IF(G120&H120=G119&H119,B119+1,1) -> 113
A121: 114 | B121: =IF(G121&H121=G120&H120,B120+1,1) -> 114
A122: 115 | B122: =IF(G122&H122=G121&H121,B121+1,1) -> 115
A123: 116 | B123: =IF(G123&H123=G122&H122,B122+1,1) -> 116
A124: 117 | B124: =IF(G124&H124=G123&H123,B123+1,1) -> 117
A125: 118 | B125: =IF(G125&H125=G124&H124,B124+1,1) -> 118
A126: 119 | B126: =IF(G126&H126=G125&H125,B125+1,1) -> 119
A127: 120 | B127: =IF(G127&H127=G126&H126,B126+1,1) -> 120
A128: 121 | B128: =IF(G128&H128=G127&H127,B127+1,1) -> 121
A129: 122 | B129: =IF(G129&H129=G128&H128,B128+1,1) -> 122
A130: 123 | B130: =IF(G130&H130=G129&H129,B129+1,1) -> 123
A131: 124 | B131: =IF(G131&H131=G130&H130,B130+1,1) -> 124
A132: 125 | B132: =IF(G132&H132=G131&H131,B131+1,1) -> 125
A133: 126 | B133: =IF(G133&H133=G132&H132,B132+1,1) -> 126
A134: 127 | B134: =IF(G134&H134=G133&H133,B133+1,1) -> 127
A135: 128 | B135: =IF(G135&H135=G134&H134,B134+1,1) -> 128
A136: 129 | B136: =IF(G136&H136=G135&H135,B135+1,1) -> 129
A137: 130 | B137: =IF(G137&H137=G136&H136,B136+1,1) -> 130
A138: 131 | B138: =IF(G138&H138=G137&H137,B137+1,1) -> 131
A139: 132 | B139: =IF(G139&H139=G138&H138,B138+1,1) -> 132
A140: 133 | B140: =IF(G140&H140=G139&H139,B139+1,1) -> 133
A141: 134 | B141: =IF(G141&H141=G140&H140,B140+1,1) -> 134
A142: 135 | B142: =IF(G142&H142=G141&H141,B141+1,1) -> 135
A143: 136 | B143: =IF(G143&H143=G142&H142,B142+1,1) -> 136
A144: 137 | B144: =IF(G144&H144=G143&H143,B143+1,1) -> 137
A145: 138 | B145: =IF(G145&H145=G144&H144,B144+1,1) -> 138
A146: 139 | B146: =IF(G146&H146=G145&H145,B145+1,1) -> 139
A147: 140 | B147: =IF(G147&H147=G146&H146,B146+1,1) -> 140
A148: 141 | B148: =IF(G148&H148=G147&H147,B147+1,1) -> 141
A149: 142 | B149: =IF(G149&H149=G148&H148,B148+1,1) -> 142
A150: 143 | B150: =IF(G150&H150=G149&H149,B149+1,1) -> 143
A151: 144 | B151: =IF(G151&H151=G150&H150,B150+1,1) -> 144
A152: 145 | B152: =IF(G152&H152=G151&H151,B151+1,1) -> 145
A153: 146 | B153: =IF(G153&H153=G152&H152,B152+1,1) -> 146
A154: 147 | B154: =IF(G154&H154=G153&H153,B153+1,1) -> 147
A155: 148 | B155: =IF(G155&H155=G154&H154,B154+1,1) -> 148
A156: 149 | B156: =IF(G156&H156=G155&H155,B155+1,1) -> 149
A157: 150 | B157: =IF(G157&H157=G156&H156,B156+1,1) -> 150
A158: 151 | B158: =IF(G158&H158=G157&H157,B157+1,1) -> 151
A159: 152 | B159: =IF(G159&H159=G158&H158,B158+1,1) -> 152
A160: 153 | B160: =IF(G160&H160=G159&H159,B159+1,1) -> 153
A161: 154 | B161: =IF(G161&H161=G160&H160,B160+1,1) -> 154
A162: 155 | B162: =IF(G162&H162=G161&H161,B161+1,1) -> 155
A163: 156 | B163: =IF(G163&H163=G162&H162,B162+1,1) -> 156
A164: 157 | B164: =IF(G164&H164=G163&H163,B163+1,1) -> 157
A165: 158 | B165: =IF(G165&H165=G164&H164,B164+1,1) -> 158
A166: 159 | B166: =IF(G166&H166=G165&H165,B165+1,1) -> 159
A167: 160 | B167: =IF(G167&H167=G166&H166,B166+1,1) -> 160
A168: 161 | B168: =IF(G168&H168=G167&H167,B167+1,1) -> 161
A169: 162 | B169: =IF(G169&H169=G168&H168,B168+1,1) -> 162
A170: 163 | B170: =IF(G170&H170=G169&H169,B169+1,1) -> 163
A171: 164 | B171: =IF(G171&H171=G170&H170,B170+1,1) -> 164
A172: 165 | B172: =IF(G172&H172=G171&H171,B171+1,1) -> 165
A173: 166 | B173: =IF(G173&H173=G172&H172,B172+1,1) -> 166
A174: 167 | B174: =IF(G174&H174=G173&H173,B173+1,1) -> 167
A175: 168 | B175: =IF(G175&H175=G174&H174,B174+1,1) -> 168
A176: 169 | B176: =IF(G176&H176=G175&H175,B175+1,1) -> 169
A177: 170 | B177: =IF(G177&H177=G176&H176,B176+1,1) -> 170
A178: 171 | B178: =IF(G178&H178=G177&H177,B177+1,1) -> 171
A179: 172 | B179: =IF(G179&H179=G178&H178,B178+1,1) -> 172
A180: 173 | B180: =IF(G180&H180=G179&H179,B179+1,1) -> 173
A181: 174 | B181: =IF(G181&H181=G180&H180,B180+1,1) -> 174
A182: 175 | B182: =IF(G182&H182=G181&H181,B181+1,1) -> 175
A183: 176 | B183: =IF(G183&H183=G182&H182,B182+1,1) -> 176
A184: 177 | B184: =IF(G184&H184=G183&H183,B183+1,1) -> 177
A185: 178 | B185: =IF(G185&H185=G184&H184,B184+1,1) -> 178
A186: 179 | B186: =IF(G186&H186=G185&H185,B185+1,1) -> 179
A187: 180 | B187: =IF(G187&H187=G186&H186,B186+1,1) -> 180
A188: 181 | B188: =IF(G188&H188=G187&H187,B187+1,1) -> 181
A189: 182 | B189: =IF(G189&H189=G188&H188,B188+1,1) -> 182
A190: 183 | B190: =IF(G190&H190=G189&H189,B189+1,1) -> 183
A191: 184 | B191: =IF(G191&H191=G190&H190,B190+1,1) -> 184
A192: 185 | B192: =IF(G192&H192=G191&H191,B191+1,1) -> 185
A193: 186 | B193: =IF(G193&H193=G192&H192,B192+1,1) -> 186
A194: 187 | B194: =IF(G194&H194=G193&H193,B193+1,1) -> 187
A195: 188 | B195: =IF(G195&H195=G194&H194,B194+1,1) -> 188
A196: 189 | B196: =IF(G196&H196=G195&H195,B195+1,1) -> 189
A197: 190 | B197: =IF(G197&H197=G196&H196,B196+1,1) -> 190
A198: 191 | B198: =IF(G198&H198=G197&H197,B197+1,1) -> 191
A199: 192 | B199: =IF(G199&H199=G198&H198,B198+1,1) -> 192
A200: 193 | B200: =IF(G200&H200=G199&H199,B199+1,1) -> 193
A201: 194 | B201: =IF(G201&H201=G200&H200,B200+1,1) -> 194
... 506 more rows
